bitfinex/quotes_SOLUSD_20250204
["timestamp","ask_amount","ask_price","bid_price","bid_amount"]
[1738657934230,37.12141998,204.79,204.72,42.03591998]
[1738657935119,37.12141998,204.83,204.74,37.12141998]
[1738657936915,57.12141998,204.85,204.78,37.12141998]
[1738657937308,37.12141998,204.87,204.8,37.12141998]
[1738657937629,37.12141998,204.89,204.82,37.12141998]
[1738657938435,37.12141998,204.93,204.84,37.12141998]
[1738657939148,37.12141998,204.87,204.79,4.8829]
[1738657939728,37.12141998,204.89,204.82,37.12141998]
[1738657939926,37.12141998,204.93,204.86,37.12141998]
[1738657940427,37.12141998,204.93,204.84,37.12141998]
[1738657940826,37.12141998,204.91,204.84,37.12141998]
[1738657941132,37.12141998,204.89,204.82,37.12141998]
[1738657941319,37.12141998,204.89,204.82,42.00371998]
[1738657941506,37.12141998,204.91,204.82,42.00371998]
[1738657942311,0.063,204.94,204.87,37.12141998]
[1738657942540,0.063,204.94,204.88,0.12549]
[1738657942837,0.063,204.94,204.92,22.83424806]
[1738657943135,0.063,204.94,204.93,4.8797]
[1738657944105,22.86424806,205.06,204.93,30.74172853]
[1738657944337,22.86424806,205.06,204.98,22.83424806]
[1738657944720,0.03,205.06,204.98,37.07584913]
[1738657945037,0.03,205.06,205.0,37.07584913]
[1738657945345,0.03,205.06,205.0,41.95384913]
[1738657945639,37.07584913,205.01,204.94,37.07584913]
[1738657945809,37.07584913,204.97,204.89,1.6661]
[1738657946008,37.07584913,204.97,204.89,6.5467]
[1738657946414,37.07584913,204.97,204.9,0.25098]
[1738657946616,37.07584913,204.95,204.87,4.8809]
[1738657946812,37.07584913,204.93,204.85,9.0094]
[1738657947334,37.07584913,204.99,204.9,37.07584913]
[1738657948011,37.07584913,204.97,204.88,37.07584913]
[1738657948420,37.07584913,204.99,204.9,37.07584913]
[1738657948638,37.07584913,204.97,204.9,37.07584913]
[1738657948940,37.07584913,204.97,204.89,0.25098]
[1738657949751,37.07584913,204.97,204.86,37.07584913]
[1738657949752,37.07584913,204.95,204.86,37.07584913]
[1738657950044,37.07584913,204.91,204.84,37.07584913]
[1738657950210,37.07584913,204.89,204.8,37.07584913]
[1738657950740,37.07584913,204.85,204.76,37.07584913]
[1738657950917,57.07584913,204.83,204.76,37.07584913]
[1738657951113,57.07584913,204.83,204.74,37.07584913]
[1738657951622,1.5187,204.87,204.72,0.03]
[1738657951623,41.95754913,204.85,204.76,37.07584913]
[1738657951819,37.07584913,204.83,204.76,37.07584913]
[1738657952139,37.07584913,204.85,204.76,37.07584913]
[1738657952328,37.07584913,204.87,204.78,37.07584913]
[1738657952529,37.07584913,204.87,204.8,37.07584913]
[1738657952840,37.07584913,204.85,204.78,37.07584913]
[1738657953029,41.95694913,204.87,204.78,37.07584913]
[1738657953232,37.07584913,204.87,204.8,37.07584913]
[1738657953413,37.07584913,204.91,204.84,37.07584913]
[1738657953616,37.07584913,204.93,204.85,5.13258]
[1738657953816,37.07584913,204.97,204.88,37.07584913]
[1738657954244,43.52374913,204.99,204.9,37.07584913]
[1738657954448,37.07584913,204.97,204.88,37.07584913]
[1738657954616,37.07584913,204.95,204.88,37.07584913]
[1738657954940,37.07584913,204.91,204.82,37.10584913]
[1738657955116,37.07584913,204.91,204.82,41.98804913]
[1738657955317,37.07584913,204.91,204.84,37.07584913]
[1738657955533,37.07584913,204.91,204.82,41.98804913]
[1738657956122,4.8801,204.92,204.84,37.07584913]
[1738657956344,37.07584913,204.89,204.82,0.03]
[1738657956544,37.07584913,204.87,204.82,0.03]
[1738657957840,41.95704913,204.87,204.82,0.03]
[1738657958045,41.95664913,204.89,204.82,0.03]
[1738657958346,37.07584913,204.89,204.82,0.03]
[1738657958734,37.07584913,204.87,204.82,0.03]
[1738657959043,37.07584913,204.85,204.82,0.03]
[1738657959255,37.07584913,204.83,204.82,0.03]
[1738657959853,55.36969766,204.83,204.82,0.03]
[1738657960440,55.49518766,204.83,204.82,0.03]
[1738657960726,13.41184853,204.78,204.72,0.03]
[1738657960923,37.07584913,204.75,204.72,0.03]
[1738657961225,13.41184853,204.78,204.72,0.03]
[1738657961226,37.07584913,204.79,204.72,0.03]
[1738657961947,41.95904913,204.79,204.72,0.03]
[1738657962149,37.07584913,204.81,204.72,37.10584913]
[1738657962351,41.95854913,204.81,204.72,37.10584913]
[1738657962822,37.07584913,204.79,204.72,0.03]
[1738657963026,37.07584913,204.77,204.72,0.03]
[1738657963522,37.07584913,204.75,204.72,0.03]
[1738657963757,37.07584913,204.77,204.72,0.03]
[1738657964357,41.95934913,204.77,204.72,0.03]
[1738657965127,37.07584913,204.81,204.72,37.10584913]
[1738657965328,37.07584913,204.77,204.72,0.03]
[1738657966352,4.8837,204.76,204.72,0.03]
[1738657966552,37.07584913,204.75,204.72,0.03]
[1738657966974,37.07584913,204.73,204.72,0.03]
[1738657968153,41.96024913,204.73,204.72,0.03]
[1738657968355,37.07584913,204.73,204.72,0.03]
[1738657968571,57.07584913,204.77,204.72,0.03]
[1738657968731,42.88282711,204.77,204.72,0.03]
[1738657969666,22.88282711,204.79,204.72,22.91282711]
[1738657969958,22.88282711,204.81,204.72,22.91282711]
[1738657970141,27.76532711,204.81,204.72,22.91282711]
[1738657970953,22.88282711,204.81,204.72,22.91282711]
[1738657971760,27.76532711,204.81,204.72,27.79732711]
[1738657972338,22.88282711,204.79,204.72,27.79732711]
[1738657972951,27.76532711,204.81,204.72,27.79732711]
[1738657973963,22.88282711,204.79,204.72,0.03]
[1738657974178,22.88282711,204.77,204.72,0.03]
[1738657974356,22.88282711,204.75,204.72,0.03]
[1738657975867,27.76682711,204.75,204.72,0.03]
[1738657978266,22.88282711,204.79,204.72,0.03]
[1738657978453,22.88282711,204.79,204.72,22.91282711]
[1738657979152,22.88282711,204.79,204.72,0.03]
[1738657979967,27.76592711,204.79,204.72,0.03]
[1738657980174,0.063,204.82,204.74,22.88282711]
[1738657980385,0.063,204.82,204.78,22.88282711]
[1738657980663,22.88282711,204.81,204.74,22.88282711]
[1738657980881,22.88282711,204.77,204.72,0.03]
[1738657981842,22.88282711,204.75,204.72,0.03]
[1738657982066,22.88282711,204.73,204.72,0.03]
[1738657983468,27.76632711,204.77,204.72,0.03]
[1738657983859,34.35282711,204.79,204.72,0.03]
[1738657984883,22.88282711,204.79,204.72,22.91282711]
[1738657985089,22.88282711,204.79,204.72,0.03]
[1738657985309,22.88282711,204.73,204.72,0.03]
[1738657985588,36.42016564,204.73,204.72,0.03]
[1738657985793,42.80835564,204.73,204.72,0.0001]
[1738657986896,22.88282711,204.62,204.61,0.03]
[1738657989075,22.88282711,204.63,204.61,0.03]
[1738657989296,22.88282711,204.66,204.61,0.03]
[1738657989498,22.88282711,204.65,204.61,0.03]
[1738657989686,22.88282711,204.62,204.61,0.03]
[1738657990277,36.42016564,204.62,204.61,0.03]
[1738657990602,42.55556564,204.62,204.61,0.03]
[1738657990973,33.90532711,204.62,204.61,0.03]
[1738657991170,22.88282711,204.62,204.61,0.03]
[1738657991503,36.42016564,204.62,204.61,0.03]
[1738657991870,36.54565564,204.62,204.61,0.03]
[1738657992073,36.42016564,204.62,204.61,0.03]
[1738657992274,36.54565564,204.62,204.61,0.03]
[1738657992818,36.54565564,204.62,204.51,0.03]
[1738657992819,20.0,204.59,204.51,0.03]
[1738657992982,22.88282711,204.57,204.51,0.03]
[1738657993601,22.88282711,204.59,204.51,22.91282711]
[1738657993796,22.88282711,204.57,204.51,0.03]
[1738657994704,20.0,204.6,204.52,0.12549]
[1738657994891,27.76972711,204.63,204.54,22.88282711]
[1738657995199,22.88282711,204.59,204.51,0.03]
[1738657995700,22.88282711,204.57,204.51,0.03]
[1738657996389,27.77112711,204.57,204.51,0.03]
[1738657997203,22.88282711,204.55,204.51,0.03]
[1738657997992,22.88282711,204.53,204.51,0.03]
[1738657998306,4.8894,204.52,204.51,0.03]
[1738657999025,22.88282711,204.53,204.51,0.03]
[1738657999187,27.77212711,204.53,204.51,0.03]
[1738657999382,27.77202711,204.53,204.51,0.03]
[1738658000789,4.8884,204.57,204.51,0.03]
[1738658000993,27.77092711,204.58,204.51,0.03]
[1738658001292,22.88282711,204.56,204.51,0.03]
[1738658001481,22.88282711,204.54,204.51,0.03]
[1738658002001,22.88282711,204.52,204.51,0.03]
[1738658002306,22.88282711,204.56,204.51,0.03]
[1738658002504,22.88282711,204.62,204.54,22.88282711]
[1738658003716,29.08892711,204.67,204.59,22.88282711]
[1738658003889,33.97502711,204.67,204.59,22.88282711]
[1738658005904,22.88282711,204.65,204.58,4.888]
[1738658006111,22.88282711,204.65,204.54,1.5556]
[1738658006112,22.88282711,204.61,204.54,1.5556]
[1738658006316,22.88282711,204.61,204.53,22.88282711]
[1738658007522,22.88282711,204.61,204.53,27.77202711]
[1738658009723,22.88282711,204.65,204.57,22.88282711]
[1738658009895,29.15192711,204.67,204.59,22.88282711]
[1738658010085,22.94582711,204.67,204.59,22.88282711]
[1738658010291,0.063,204.67,204.63,22.88282711]
[1738658010508,0.063,204.67,204.61,22.88282711]
[1738658011227,27.83182711,204.67,204.59,22.88282711]
[1738658011391,22.88282711,204.65,204.57,22.88282711]
[1738658011597,27.76922711,204.65,204.57,27.77102711]
[1738658011899,22.88282711,204.65,204.57,27.77102711]
[1738658012894,22.94582711,204.67,204.58,0.12549]
[1738658013101,0.063,204.67,204.62,22.88282711]
[1738658013535,0.063,204.67,204.6,23.00831711]
[1738658013696,0.063,204.67,204.61,4.8873]
[1738658014206,0.063,204.67,204.54,22.88282711]
[1738658014207,22.88282711,204.63,204.54,22.88282711]
[1738658014411,22.88282711,204.61,204.54,22.88282711]
[1738658014614,22.88282711,204.59,204.52,27.77222711]
[1738658014818,22.88282711,204.59,204.51,4.9197]
[1738658015191,22.88282711,204.57,204.51,0.03]
[1738658016024,22.88282711,204.55,204.51,0.03]
[1738658016433,22.88282711,204.53,204.51,0.03]
[1738658017331,22.88282711,204.55,204.51,0.03]
[1738658018805,22.88282711,204.59,204.51,0.03]
[1738658019108,22.88282711,204.61,204.52,22.88282711]
[1738658019705,22.88282711,204.61,204.54,22.88282711]
[1738658019901,22.94582711,204.65,204.58,22.88282711]
[1738658020120,0.063,204.65,204.6,22.88282711]
[1738658020425,0.063,204.65,204.61,4.8873]
[1738658020609,0.063,204.65,204.62,22.88282711]
[1738658021917,0.063,204.65,204.61,4.8873]
[1738658022100,0.063,204.65,204.62,22.88282711]
[1738658022601,0.063,204.65,204.6,22.88282711]
[1738658024603,0.063,204.65,204.6,27.77032711]
[1738658025025,0.063,204.65,204.62,22.88282711]
[1738658026033,0.063,204.65,204.62,4.887]
[1738658026201,0.063,204.65,204.6,27.77012711]
[1738658027924,0.063,204.65,204.58,27.89621711]
[1738658028423,22.94582711,204.65,204.56,22.88282711]
[1738658028635,22.88282711,204.63,204.56,27.77112711]
[1738658028827,22.88282711,204.63,204.54,109.27172711]
[1738658029017,22.88282711,204.61,204.54,86.3889]
[1738658030327,9.99004185,204.61,204.54,86.3889]
[1738658030818,22.88282711,204.59,204.54,81.5]
[1738658031008,22.88282711,204.59,204.52,5.01479]
[1738658031208,29.48692711,204.61,204.54,22.88282711]
[1738658031409,6.6041,204.61,204.54,22.88282711]
[1738658031613,34.37422711,204.61,204.53,0.12549]
[1738658031818,22.88282711,204.59,204.52,27.77212711]
[1738658032210,22.88282711,204.59,204.58,0.03]
[1738658032617,27.77062711,204.59,204.58,0.03]
[1738658032828,22.88282711,204.59,204.58,0.03]
[1738658034334,27.77062711,204.59,204.58,0.03]
[1738658036236,42.88282711,204.59,204.58,0.03]
[1738658037230,29.48692711,204.61,204.58,0.03]
[1738658037436,34.37422711,204.61,204.58,0.03]
[1738658037632,42.88282711,204.59,204.58,0.03]
[1738658037876,56.42016564,204.59,204.58,0.03]
[1738658038218,0.12549,204.58,204.51,0.03]
[1738658038437,22.88282711,204.52,204.51,0.03]
[1738658038652,14.33663784,204.52,204.51,0.03]
[1738658039754,20.36323784,204.52,204.51,0.03]
[1738658039956,33.90057637,204.52,204.51,0.03]
[1738658040451,38.78997637,204.52,204.51,0.03]
[1738658040652,20.0,204.49,204.39,22.9478021]
[1738658040852,22.9478021,204.46,204.39,22.9478021]
[1738658041846,20.0,204.49,204.41,22.9478021]
[1738658042030,6.0266,204.52,204.45,22.9478021]
[1738658042459,20.0,204.51,204.45,22.9478021]
[1738658042656,22.9478021,204.54,204.47,22.9478021]
[1738658043333,22.9478021,204.54,204.51,0.03]
[1738658044456,22.9478021,204.59,204.51,22.9778021]
[1738658044656,27.8973021,204.65,204.56,0.12549]
[1738658044837,0.063,204.65,204.59,22.9478021]
[1738658045249,0.063,204.65,204.61,22.9478021]
[1738658045671,0.063,204.65,204.63,22.9478021]
[1738658045840,0.063,204.65,204.61,22.9478021]
[1738658046157,0.063,204.65,204.59,22.9478021]
[1738658048071,0.063,204.65,204.61,22.9478021]
[1738658048847,0.063,204.65,204.58,4.8879]
[1738658049144,23.0108021,204.65,204.57,22.9478021]
[1738658049347,22.9478021,204.61,204.53,22.9478021]
[1738658049553,22.9478021,204.61,204.51,0.03]
[1738658049554,22.9478021,204.57,204.51,0.03]
[1738658049857,22.9478021,204.57,204.51,0.15549]
[1738658050062,22.9478021,204.59,204.51,0.15549]
[1738658050388,27.8356021,204.59,204.51,0.15549]
[1738658050531,22.9478021,204.57,204.51,0.03]
[1738658050736,22.9478021,204.53,204.51,0.03]
[1738658051149,22.9478021,204.55,204.51,0.03]
[1738658051681,22.9478021,204.53,204.51,0.03]
[1738658053277,22.9478021,204.55,204.51,0.03]
[1738658053780,22.9478021,204.53,204.51,0.03]
[1738658054074,27.8371021,204.53,204.51,0.03]
[1738658054877,20.0,204.58,204.51,0.03]
[1738658055075,29.2614021,204.61,204.53,22.9478021]
[1738658055261,0.063,204.54,204.53,22.9478021]
[1738658055454,0.063,204.54,204.51,22.9778021]
[1738658055785,0.063,204.54,204.53,36.61063063]
[1738658055949,0.063,204.54,204.53,22.9478021]
[1738658056386,0.063,204.54,204.53,23.0732921]
[1738658056681,0.063,204.54,204.53,36.61063063]
[1738658056986,7.64166725,204.65,204.59,13.66282853]
[1738658057149,7.64166725,204.65,204.54,18.23699]
[1738658057150,7.64166725,204.65,204.6,22.9478021]
[1738658057351,22.9478021,204.61,204.52,27.8371021]
[1738658057570,22.9478021,204.59,204.52,4.8893]
[1738658058183,22.9478021,204.59,204.52,27.8371021]
[1738658058769,22.9478021,204.59,204.5,22.9478021]
[1738658058958,22.9478021,204.57,204.5,27.8377021]
[1738658059156,22.9478021,204.57,204.48,27.8381021]
[1738658059376,22.9478021,204.57,204.48,22.9478021]
[1738658059581,22.9478021,204.57,204.48,27.8381021]
[1738658061491,27.8361021,204.57,204.48,27.8381021]
[1738658061958,22.9478021,204.53,204.47,0.03]
[1738658062897,13.53733853,204.52,204.47,0.03]
[1738658063461,18.30124853,204.52,204.47,0.03]
[1738658063660,27.8370021,204.53,204.47,0.03]
[1738658064094,6.4012,204.56,204.5,22.9478021]
[1738658064255,6.4012,204.56,204.52,22.9478021]
[1738658064451,29.3490021,204.56,204.48,22.9478021]
[1738658064651,22.9478021,204.54,204.47,0.03]
[1738658065192,42.9478021,204.52,204.47,0.03]
[1738658065410,47.8372021,204.52,204.47,0.03]
[1738658065859,61.50003063,204.52,204.47,0.03]
[1738658066596,20.0,204.48,204.47,0.03]
[1738658066753,22.9478021,204.48,204.47,0.03]
[1738658066959,42.9478021,204.48,204.47,0.03]
[1738658067271,56.48514063,204.48,204.47,0.03]
[1738658067791,61.37554063,204.48,204.47,0.03]
[1738658068163,43.06273063,204.48,204.47,0.03]
[1738658068791,42.93724063,204.48,204.47,0.03]
[1738658068972,29.3999021,204.48,204.47,0.03]
[1738658069190,43.06273063,204.48,204.47,0.03]
[1738658069392,22.9478021,204.4,204.31,22.9478021]
[1738658069710,22.9478021,204.38,204.31,22.9478021]
[1738658069913,27.8407021,204.38,204.3,0.03]
[1738658070074,22.9478021,204.32,204.3,0.03]
[1738658070798,42.9478021,204.34,204.3,0.03]
[1738658071313,22.9478021,204.34,204.3,0.03]
[1738658071514,22.9478021,204.36,204.3,0.03]
[1738658072382,22.9478021,204.34,204.3,0.03]
[1738658075585,22.9478021,204.32,204.3,0.03]
[1738658077125,0.12549,204.27,204.17,22.9478021]
[1738658077425,22.9478021,204.19,204.11,22.9478021]
[1738658077630,22.9478021,204.23,204.15,22.9478021]
[1738658077995,1.5114,204.25,204.15,22.9478021]
[1738658078199,22.9478021,204.24,204.15,22.9478021]
[1738658078405,20.0,204.25,204.17,22.9478021]
[1738658079021,20.0,204.25,204.17,27.8456021]
[1738658079188,22.9478021,204.22,204.13,22.9478021]
[1738658079811,22.9478021,204.24,204.15,22.9478021]
[1738658080592,22.9478021,204.26,204.17,22.9478021]
[1738658081025,22.9478021,204.26,204.18,4.8976]
[1738658081830,22.9478021,204.26,204.13,25.78423853]
[1738658081831,22.9478021,204.24,204.15,22.9478021]
[1738658083020,22.9478021,204.24,204.17,22.9478021]
[1738658083394,4.8957,204.26,204.17,22.9478021]
[1738658083395,22.9478021,204.26,204.17,22.9478021]
[1738658083596,22.9478021,204.26,204.19,22.9478021]
[1738658083795,22.9478021,204.26,204.17,22.9478021]
[1738658084194,22.9478021,204.26,204.12,17.88079301]
[1738658084195,22.9478021,204.2,204.12,27.8468021]
[1738658084629,22.9478021,204.22,204.14,22.9478021]
[1738658084832,22.9478021,204.26,204.18,22.9478021]
[1738658085707,5.99017135,204.34,204.2,22.9478021]
[1738658085708,22.9478021,204.28,204.2,22.9478021]
[1738658086100,22.9478021,204.3,204.22,22.9478021]
[1738658086836,22.9478021,204.28,204.2,22.9478021]
[1738658087136,22.9478021,204.3,204.22,22.9478021]
[1738658088399,22.9478021,204.3,204.23,4.8964]
[1738658089133,12.814,204.31,204.23,4.8964]
[1738658089134,22.9478021,204.28,204.23,4.8964]
[1738658089435,22.9478021,204.28,204.2,22.9478021]
[1738658090312,22.9478021,204.34,204.26,22.9478021]
[1738658090520,22.9478021,204.32,204.24,22.9478021]
[1738658090905,22.9478021,204.3,204.22,27.8444021]
[1738658091237,22.9478021,204.28,204.22,27.8444021]
[1738658093333,22.9478021,204.28,204.22,4.8966]
[1738658094033,0.063,204.3,204.24,22.9478021]
[1738658094637,0.063,204.3,204.23,14.36566672]
[1738658094934,0.063,204.3,204.24,4.8962]
[1738658095941,14.36566672,204.29,204.24,4.8962]
[1738658096310,14.36566672,204.29,204.22,4.8966]
[1738658096512,0.063,204.3,204.23,14.36566672]
[1738658097631,0.063,204.3,204.25,14.36566672]
[1738658098338,0.063,204.3,204.29,14.36566672]
[1738658098643,0.063,204.3,204.28,4.8952]
[1738658100441,0.0001,204.3,204.29,45.12821966]
[1738658100641,1.5179,204.43,204.32,13.66282853]
[1738658100854,1.5179,204.43,204.31,14.36566672]
[1738658101017,14.36566672,204.35,204.28,4.8952]
[1738658101522,14.36566672,204.37,204.31,14.36566672]
[1738658101720,6.4097,204.43,204.3,4.8947]
[1738658102037,14.36566672,204.43,204.35,14.36566672]
[1738658102250,14.36566672,204.43,204.36,0.12549]
[1738658102540,20.99266672,204.45,204.37,14.36566672]
[1738658102841,14.36566672,204.41,204.33,14.36566672]
[1738658103239,14.36566672,204.43,204.35,14.36566672]
[1738658103417,20.99266672,204.45,204.37,14.36566672]
[1738658103726,20.99266672,204.45,204.38,4.8928]
[1738658103929,0.063,204.41,204.37,14.36566672]
[1738658104131,0.063,204.41,204.35,14.36566672]
[1738658104331,0.063,204.41,204.37,14.36566672]
[1738658105319,14.42866672,204.41,204.33,14.36566672]
[1738658105533,14.36566672,204.35,204.27,14.36566672]
[1738658105719,14.36566672,204.33,204.25,19.26156672]
[1738658105923,14.36566672,204.33,204.26,30.0]
[1738658106123,14.36566672,204.37,204.29,14.36566672]
[1738658106343,12.2294,204.43,204.27,0.12549]
[1738658106344,14.42866672,204.41,204.33,14.36566672]
[1738658106541,0.063,204.41,204.35,14.36566672]
[1738658106716,0.063,204.41,204.33,22.95992228]
[1738658106922,4.9551,204.41,204.33,22.95992228]
[1738658107338,22.95992228,204.38,204.31,22.95992228]
[1738658107648,22.95992228,204.4,204.31,22.95992228]
[1738658107954,22.95992228,204.4,204.33,22.95992228]
[1738658108146,22.95992228,204.4,204.28,0.12549]
[1738658108352,22.95992228,204.38,204.29,22.95992228]
[1738658108644,22.95992228,204.38,204.29,27.85482228]
[1738658108842,22.95992228,204.38,204.31,22.95992228]
[1738658109422,22.95992228,204.36,204.29,22.95992228]
[1738658109735,22.95992228,204.36,204.27,27.85512228]
[1738658110043,33.87422228,204.34,204.25,22.95992228]
[1738658110616,28.98042228,204.34,204.25,22.95992228]
[1738658111024,33.87422228,204.34,204.25,22.95992228]
[1738658111440,22.95992228,204.32,204.25,22.95992228]
[1738658111662,22.95992228,204.32,204.23,22.95992228]
[1738658111955,22.95992228,204.3,204.23,22.95992228]
[1738658113537,22.95992228,204.3,204.22,0.03]
[1738658113865,4.8976,204.18,204.09,22.95992228]
[1738658114030,22.95992228,204.18,204.09,27.85952228]
[1738658114243,24.8974,204.19,204.11,22.95992228]
[1738658114763,22.95992228,204.18,204.11,22.95992228]
[1738658114967,22.95992228,204.18,204.09,22.95992228]
[1738658115274,22.95992228,204.18,204.11,22.95992228]
[1738658115573,4.8974,204.19,204.11,22.95992228]
[1738658116075,22.95992228,204.18,204.11,22.95992228]
[1738658116373,22.95992228,204.18,204.09,22.95992228]
[1738658116743,22.95992228,204.18,204.11,22.95992228]
[1738658117273,22.95992228,204.18,204.11,0.03]
[1738658117472,6.6206,204.12,204.11,0.03]
[1738658117677,8.2272,204.12,204.11,0.03]
[1738658117997,22.95992228,204.09,204.01,27.86152228]
[1738658118192,27.85972228,204.09,204.01,22.95992228]
[1738658118547,27.85972228,204.09,203.94,22.95992228]
[1738658118548,22.95992228,204.02,203.94,22.95992228]
[1738658119245,22.95992228,204.0,203.92,27.86372228]
[1738658120077,22.95992228,203.98,203.9,27.89412228]
[1738658120246,22.95992228,203.98,203.9,22.98992228]
[1738658120443,22.95992228,204.0,203.92,22.95992228]
[1738658120978,6.2138,204.06,203.94,22.95992228]
[1738658120979,22.95992228,204.02,203.94,22.95992228]
[1738658121270,29.17372228,204.06,203.98,22.95992228]
[1738658122087,29.17372228,204.06,203.98,27.86212228]
[1738658122388,22.95992228,204.04,203.96,22.95992228]
[1738658122557,11.1143,204.06,203.93,4.9036]
[1738658122558,22.95992228,204.0,203.93,4.9036]
[1738658123656,22.95992228,204.02,203.94,22.95992228]
[1738658124791,22.95992228,204.02,203.94,27.86322228]
[1738658125091,22.95992228,204.02,203.9,0.03]
[1738658125092,6.5342,203.94,203.9,0.03]
[1738658125254,22.95992228,203.92,203.9,0.03]
[1738658125458,29.49412228,203.94,203.9,0.03]
[1738658126356,22.95992228,203.92,203.9,0.03]
[1738658129059,29.49412228,203.94,203.9,0.03]
[1738658129558,22.95992228,203.92,203.9,0.03]
[1738658129776,22.95992228,203.92,203.78,22.95992228]
[1738658129777,0.25098,203.91,203.78,22.95992228]
[1738658129985,22.95992228,203.85,203.78,22.95992228]
[1738658130360,22.95992228,203.85,203.76,27.86762228]
[1738658131767,27.86552228,203.85,203.76,27.86762228]
[1738658131963,22.95992228,203.85,203.76,27.86762228]
[1738658132186,22.95992228,203.91,203.82,22.95992228]
[1738658132359,6.5342,203.94,203.88,22.95992228]
[1738658132866,6.5342,203.94,203.89,4.9046]
[1738658133378,6.5342,203.94,203.88,27.86472228]
[1738658133676,22.95992228,203.93,203.86,27.86492228]
[1738658134356,6.5342,203.94,203.86,27.86492228]
[1738658134672,22.95992228,203.9,203.82,22.95992228]
[1738658134881,22.95992228,203.9,203.82,27.86612228]
[1738658135479,27.86382228,203.92,203.84,22.95992228]
[1738658135652,22.95992228,203.9,203.82,27.86612228]
[1738658135855,22.95992228,203.88,203.8,22.95992228]
[1738658136050,22.95992228,203.86,203.78,22.95992228]
[1738658136256,22.95992228,203.9,203.82,22.95992228]
[1738658136559,22.95992228,203.92,203.84,22.95992228]
[1738658136964,22.95992228,203.88,203.8,22.95992228]
[1738658137483,22.95992228,203.86,203.78,22.95992228]
[1738658138779,22.95992228,203.88,203.8,22.95992228]
[1738658139079,22.95992228,203.86,203.79,4.9068]
[1738658139252,4.9049,203.88,203.76,22.95992228]
[1738658139253,22.95992228,203.84,203.76,22.95992228]
[1738658139659,1.536,203.83,203.76,22.95992228]
[1738658140199,6.6312,203.85,203.82,22.95992228]
[1738658141063,6.6312,203.85,203.82,27.86612228]
[1738658141381,1.5749,203.88,203.84,22.95992228]
[1738658141587,1.5749,203.88,203.86,22.95992228]
[1738658141756,6.1605,203.91,203.86,22.95992228]
[1738658142598,22.95992228,203.9,203.82,22.95992228]
[1738658142885,22.95992228,203.86,203.82,0.03]
[1738658143185,4.9055,203.85,203.82,0.03]
[1738658143364,22.95992228,203.9,203.82,0.03]
[1738658143565,4.9048,203.89,203.83,22.95992228]
[1738658143765,22.95992228,203.88,203.82,0.03]
[1738658144083,22.95992228,203.86,203.79,22.95992228]
[1738658144778,22.95992228,203.88,203.79,22.95992228]
[1738658144980,6.1605,203.91,203.84,22.95992228]
[1738658145376,6.1605,203.91,203.86,22.95992228]
[1738658146200,22.95992228,203.9,203.82,22.95992228]
[1738658146387,6.1605,203.91,203.86,22.95992228]
[1738658147304,6.1605,203.91,203.86,27.86512228]
[1738658148914,6.1605,203.91,203.86,22.95992228]
[1738658149513,6.1605,203.91,203.86,27.86512228]
[1738658149711,6.1605,203.91,203.88,22.95992228]
[1738658149884,0.063,203.94,203.9,22.95992228]
[1738658150385,0.063,203.94,203.88,22.95992228]
[1738658150601,27.92632228,203.94,203.86,22.95992228]
[1738658151113,23.02292228,203.94,203.86,22.95992228]
[1738658151301,0.063,203.94,203.9,27.86402228]
[1738658151491,0.063,203.94,203.88,22.95992228]
[1738658152287,0.063,203.94,203.9,22.95992228]
[1738658152489,0.063,203.94,203.88,22.95992228]
[1738658152711,23.02292228,203.94,203.86,22.95992228]
[1738658153515,22.95992228,203.92,203.84,22.95992228]
[1738658153723,22.95992228,203.92,203.83,4.9058]
[1738658154015,22.95992228,203.9,203.83,4.9058]
[1738658154222,22.95992228,203.9,203.82,22.95992228]
[1738658154393,22.95992228,203.9,203.81,4.9064]
[1738658154786,22.95992228,203.86,203.78,27.86702228]
[1738658155219,22.95992228,203.83,203.76,22.95992228]
[1738658155402,4.9062,203.82,203.74,22.95992228]
[1738658155584,22.95992228,203.81,203.72,22.95992228]
[1738658155917,22.95992228,203.81,203.72,27.86842228]
[1738658156091,22.95992228,203.83,203.74,22.95992228]
[1738658156423,27.86592228,203.83,203.74,22.95992228]
[1738658157589,27.86592228,203.83,203.68,22.95992228]
[1738658157590,22.95992228,203.75,203.68,22.95992228]